[Event "Dutch Open-ch 2019"]
[Site "Dieren"]
[Date "2019.08.01"]
[Round "9.20"]
[White "Tang, Charlie"]
[Black "De Jong, Tom"]
[Result "1/2-1/2"]
[ECO "B19"]
[WhiteElo "2247"]
[BlackElo "2176"]
[Annotator "NA"]
[PlyCount "115"]
[EventDate "2019.07.23"]
[EventType "swiss"]
[EventCountry "NED"]
[SourceTitle "playchess.com"]
[Source "ChessBase"]
[SourceQuality "1"]
[TimeControl "40/5400+30:1800+30"]

1. e4 {[%emt 0:00:00]} c6 {[%emt 0:00:00]} 2. d4 {[%emt 0:00:00]} d5 {[%emt 0:00:00]} 3. Nd2 {[%emt 0:00:00]} dxe4 {[%emt 0:00:00]} 4. Nxe4 {[%emt 0:00:00]} Bf5 {[%emt 0:00:00]} 5. Ng3 {[%emt 0:00:07]} Bg6 {[%emt 0:00:03]} 6. h4 {[%emt 0:00:08]} h6 {[%emt 0:00:08]} 7. Nf3 {[%emt 0:00:05]} Nd7 {[%emt 0:00:07]} 8. h5 {[%emt 0:00:06]} Bh7 {[%emt 0:00:08]} 9. Bd3 {[%emt 0:00:10]} Bxd3 {[%emt 0:00:28]} 10. Qxd3 {[%emt 0:00:06]} Qc7 {[%emt 0:00:24]} 11. Bd2 {[%emt 0:00:53]} e6 {[%emt 0:00:24]} 12. O-O-O {[%emt 0:00:11]} O-O-O {[%emt 0:03:51]} 13. Ne4 {[%emt 0:01:12]} Ngf6 {[%emt 0:00:14]} 14. g3 {[%emt 0:00:18]} Nxe4 {[%emt 0:00:24]} 15. Qxe4 {[%emt 0:00:06]} Nf6 {[%emt 0:00:26]} 16. Qe2 {[%emt 0:00:10]} Bd6 {[%emt 0:00:37]} 17. c4 {[%emt 0:01:18]} c5 {[%emt 0:00:20]} 18. Bc3 {[%emt 0:00:23]} cxd4 {[%emt 0:00:31]} 19. Nxd4 {[%emt 0:00:20]} a6 {[%emt 0:00:12]} 20. Kb1 {[%emt 0:04:14]} Rd7 {[%emt 0:06:39]} 21. Nb3 {[%emt 0:09:19]} Qc6 {[%emt 0:03:58]} 22. g4 {[%emt 0:18:30]} Rhd8 {[%emt 0:09:28]} 23. f3 {[%emt 0:00:14]} Bc7 {[%emt 0:07:01]} 24. Rxd7 {[%emt 0:09:51]} Rxd7 {[%emt 0:01:28]} 25. Nd4 {[%emt 0:06:40]} Qc5 {[%emt 0:07:51]} 26. Rd1 {[%emt 0:03:48]} e5 {[%emt 0:20:18]} 27. Nf5 {[%emt 0:01:07]} Rxd1+ {[%emt 0:00:06]} 28. Qxd1 {[%emt 0:00:05]} Qxc4 {[%emt 0:00:10]} 29. Nxg7 {[%emt 0:04:28]} Nd5 {[%emt 0:01:17]} 30. Bd2 {[%emt 0:05:59]} Qd3+ {[%emt 0:06:36]} 31. Qc2 {[%emt 0:00:18]} Qxf3 {[%emt 0:03:40]} 32. Qf5+ {[%emt 0:00:36]} Qxf5+ {[%emt 0:00:07]} 33. Nxf5 {[%emt 0:00:22]} Kd7 {[%emt 0:15:51]} 34. Bxh6 {[%emt 0:04:11]} Nf6 {[%emt 0:05:54]} 35. Bg7 {[%emt 0:02:44]} Ke6 {[%emt 0:05:28]} 36. Kc2 {[%emt 0:10:33]} Nxh5 {[%emt 0:02:08]} 37. Nd4+ {[%emt 0:02:16]} exd4 {[%emt 0:00:06]} 38. gxh5 {[%emt 0:00:04]} Kf5 {[%emt 0:00:42]} 39. Kd3 {[%emt 0:00:04]} Kg5 {[%emt 0:00:46]} 40. h6 {[%emt 0:00:05]} Kg6 {[%emt 0:00:05]} 41. Kxd4 {[%emt 0:30:08]} Bf4 {[%emt 0:30:32]} 42. Kc5 {[%emt 0:00:43]} Be3+ {[%emt 0:00:00]} 43. Kd6 {[%emt 0:00:00]} Bxh6 {[%emt 0:00:00]} 44. Bd4 {[%emt 0:00:00]} Bg7 {[%emt 0:00:00]} 45. Bf2 {[%emt 0:00:00]} Bxb2 {[%emt 0:00:00]} 46. Kc7 {[%emt 0:00:00]} b5 {[%emt 0:00:00]} 47. Kb6 {[%emt 0:00:00]} f5 {[%emt 0:00:00]} 48. Kxa6 {[%emt 0:00:00]} b4 {[%emt 0:00:00]} 49. Kb5 {[%emt 0:00:00]} Ba3 {[%emt 0:00:00]} 50. Kc4 {[%emt 0:00:00]} Kg5 {[%emt 0:00:00]} 51. Kd3 {[%emt 0:00:00]} Kf4 {[%emt 0:00:00]} 52. Ke2 {[%emt 0:00:00]} Bb2 {[%emt 0:00:00]} 53. Bc5 {[%emt 0:00:00]} Bc3 {[%emt 0:00:00]} 54. Kf2 {[%emt 0:00:00]} Ke4 {[%emt 0:00:00]} 55. Be7 {[%emt 0:00:00]} f4 {[%emt 0:00:00]} 56. Ke2 {[%emt 0:00:00]} f3+ {[%emt 0:00:00]} 57. Kf2 {[%emt 0:00:00]} Bd4+ {[%emt 0:00:00]} 58. Kf1 {[%emt 0:00:00]} 1/2-1/2